[Event "55th Biel Festival MTO 2022"]
[Site "Biel"]
[Date "2022.07.21"]
[Round "8.24"]
[White "Shubin Daniel"]
[Black "Peyrer, Konstantin"]
[Result "0-1"]
[ECO "B17"]
[WhiteElo "2120"]
[BlackElo "2406"]
[Annotator "ChessBase"]
[PlyCount "92"]
[EventDate "2022.07.13"]
[EventType "swiss"]
[EventCountry "SUI"]
[SourceTitle "playchess.com"]
[Source "ChessBase"]
[SourceQuality "1"]
[TimeControl "40/5400+30:1800+30"]

1. e4 {[%emt 0:00:02]} c6 {[%emt 0:01:02]} 2. d4 {[%emt 0:00:04]} d5 {[%emt 0:00:04]} 3. Nc3 {[%emt 0:00:03]} dxe4 {[%emt 0:00:06]} 4. Nxe4 {[%emt 0:00:04]} Nd7 {[%emt 0:00:53]} 5. Bd3 {[%emt 0:05:25]} Ngf6 {[%emt 0:00:21]} 6. Nxf6+ {[%emt 0:00:08]} Nxf6 {[%emt 0:00:06]} 7. c3 {[%emt 0:00:04]} g6 {[%emt 0:01:15]} 8. Ne2 {[%emt 0:12:04]} Bg7 {[%emt 0:00:55]} 9. O-O {[%emt 0:00:43]} O-O {[%emt 0:00:08]} 10. b4 {[%emt 0:12:59]} Nd5 {[%emt 0:02:48]} 11. Qb3 {[%emt 0:01:32]} a5 {[%emt 0:09:51]} 12. bxa5 {[%emt 0:07:46]} Qxa5 {[%emt 0:02:52]} 13. c4 {[%emt 0:04:08]} Nc7 {[%emt 0:01:58]} 14. Bb2 {[%emt 0:00:23]} Ne6 {[%emt 0:02:08]} 15. Rfd1 {[%emt 0:02:23]} Rd8 {[%emt 0:01:48]} 16. Bc2 {[%emt 0:10:24]} Qa7 {[%emt 0:08:47]} 17. Qb4 {[%emt 0:06:09]} c5 {[%emt 0:05:08]} 18. dxc5 {[%emt 0:01:16]} Rxd1+ {[%emt 0:00:22]} 19. Bxd1 {[%emt 0:00:51]} Qxc5 {[%emt 0:02:29]} 20. Qxc5 {[%emt 0:00:51]} Nxc5 {[%emt 0:00:20]} 21. Bxg7 {[%emt 0:02:32]} Kxg7 {[%emt 0:00:08]} 22. a4 {[%emt 0:02:30]} Be6 {[%emt 0:01:44]} 23. Nd4 {[%emt 0:00:43]} Bd7 {[%emt 0:00:04]} 24. Nb3 {[%emt 0:05:45]} Rxa4 {[%emt 0:01:03]} 25. Rxa4 {[%emt 0:06:44]} Nxa4 {[%emt 0:00:08]} 26. c5 {[%emt 0:00:02]} Be6 {[%emt 0:00:12]} 27. c6 {[%emt 0:00:41]} bxc6 {[%emt 0:00:22]} 28. Nd4 {[%emt 0:03:53]} Nc3 {[%emt 0:00:06]} 29. Nxe6+ {[%emt 0:01:24]} fxe6 {[%emt 0:00:07]} 30. Bb3 {[%emt 0:00:04]} Kf6 {[%emt 0:00:18]} 31. f3 {[%emt 0:00:21]} e5 {[%emt 0:00:42]} 32. Kf2 {[%emt 0:00:09]} e4 {[%emt 0:00:13]} 33. f4 {[%emt 0:03:29]} e5 {[%emt 0:00:18]} 34. Ke3 {[%emt 0:03:12]} exf4+ {[%emt 0:00:16]} 35. Kxf4 {[%emt 0:00:03]} g5+ {[%emt 0:00:09]} 36. Ke3 {[%emt 0:00:01]} Ke5 {[%emt 0:00:10]} 37. Bc4 {[%emt 0:01:03]} Nd5+ {[%emt 0:00:05]} 38. Ke2 {[%emt 0:00:14]} Kd4 {[%emt 0:00:07]} 39. Ba6 {[%emt 0:00:04]} c5 {[%emt 0:00:07]} 40. g3 {[%emt 0:02:50]} c4 {[%emt 0:00:06]} 41. h4 {[%emt 0:30:03]} h6 {[%emt 0:30:07]} 42. hxg5 {[%emt 0:00:03]} hxg5 {[%emt 0:00:04]} 43. g4 {[%emt 0:00:05]} c3 {[%emt 0:00:20]} 44. Kd1 {[%emt 0:02:07]} Nb4 {[%emt 0:00:16]} 45. Be2 {[%emt 0:00:24]} c2+ {[%emt 0:00:06]} 46. Kc1 {[%emt 0:00:03]} Kc3 {[%emt 0:00:06]} 0-1

[Event "55th Biel Festival MTO 2022"]
[Site "Biel"]
[Date "2022.07.21"]
[Round "8.25"]
[White "Katz, Alexander"]
[Black "Abdulrahman Mohammad, Al Taher"]
[Result "1-0"]
[ECO "D35"]
[WhiteElo "2402"]
[BlackElo "2029"]
[Annotator "ChessBase"]
[PlyCount "103"]
[EventDate "2022.07.13"]
[EventType "swiss"]
[EventCountry "SUI"]
[SourceTitle "playchess.com"]
[Source "ChessBase"]
[SourceQuality "1"]
[TimeControl "40/5400+30:1800+30"]

1. Nf3 {[%emt 0:00:06]} d5 {[%emt 0:00:42]} 2. c4 {[%emt 0:00:28]} e6 {[%emt 0:00:41]} 3. d4 {[%emt 0:01:14]} Nf6 {[%emt 0:01:01]} 4. Nc3 {[%emt 0:00:37]} Be7 {[%emt 0:01:27]} 5. Bf4 {[%emt 0:02:12]} O-O {[%emt 0:03:19]} 6. e3 {[%emt 0:00:38]} Nbd7 {[%emt 0:06:56]} 7. cxd5 {[%emt 0:02:59]} exd5 {[%emt 0:01:33]} 8. Bd3 {[%emt 0:00:25]} c6 {[%emt 0:01:50]} 9. O-O {[%emt 0:00:12]} Nh5 {[%emt 0:03:49]} 10. Be5 {[%emt 0:08:36]} Nxe5 {[%emt 0:07:32]} 11. Nxe5 {[%emt 0:00:12]} g6 {[%emt 0:02:31]} 12. Rb1 {[%emt 0:03:46]} Bd6 {[%emt 0:06:19]} 13. f4 {[%emt 0:13:28]} Qe7 {[%emt 0:05:21]} 14. Qf3 {[%emt 0:07:37]} f6 {[%emt 0:16:54]} 15. Nxg6 {[%emt 0:01:51]} hxg6 {[%emt 0:01:19]} 16. Bxg6 {[%emt 0:00:12]} Ng7 {[%emt 0:01:39]} 17. f5 {[%emt 0:00:29]} Bxf5 {[%emt 0:13:51]} 18. Bxf5 {[%emt 0:01:03]} Nxf5 {[%emt 0:00:07]} 19. Qxf5 {[%emt 0:00:23]} Qxe3+ {[%emt 0:00:06]} 20. Kh1 {[%emt 0:00:42]} Rae8 {[%emt 0:02:10]} 21. Rf3 {[%emt 0:08:14]} Qe7 {[%emt 0:01:49]} 22. Qg6+ {[%emt 0:08:11]} Qg7 {[%emt 0:02:09]} 23. Rxf6 {[%emt 0:00:17]} Rxf6 {[%emt 0:01:36]} 24. Qxe8+ {[%emt 0:00:08]} Kh7 {[%emt 0:00:36]} 25. Qe3 {[%emt 0:02:26]} Rh6 {[%emt 0:03:30]} 26. h3 {[%emt 0:00:55]} Rg6 {[%emt 0:02:34]} 27. Rg1 {[%emt 0:01:31]} Rg3 {[%emt 0:02:50]} 28. Qf2 {[%emt 0:02:00]} Rd3 {[%emt 0:06:10]} 29. Qf5+ {[%emt 0:02:51]} Qg6 {[%emt 0:00:05]} 30. Qd7+ {[%emt 0:00:38]} Kg8 {[%emt 0:02:03]} 31. Qc8+ {[%emt 0:02:44]} Kh7 {[%emt 0:02:02]} 32. Qxb7+ {[%emt 0:02:47]} Kg8 {[%emt 0:00:50]} 33. Qa8+ {[%emt 0:02:19]} Kh7 {[%emt 0:00:42]} 34. Qxa7+ {[%emt 0:00:23]} Kh6 {[%emt 0:00:19]} 35. Qa8 {[%emt 0:00:54]} Kh7 {[%emt 0:00:14]} 36. Qb7+ {[%emt 0:00:12]} Kh6 {[%emt 0:00:18]} 37. Qc8 {[%emt 0:00:08]} Kh7 {[%emt 0:00:11]} 38. Qd7+ {[%emt 0:00:14]} Kg8 {[%emt 0:00:32]} 39. Re1 {[%emt 0:05:22]} Rxd4 {[%emt 0:00:14]} 40. Qe6+ {[%emt 0:08:46]} Qxe6 {[%emt 0:00:09]} 41. Rxe6 {[%emt 0:30:06]} Bf4 {[%emt 0:30:26]} 42. Rxc6 {[%emt 0:07:23]} Rd2 {[%emt 0:00:09]} 43. g3 {[%emt 0:01:07]} Be5 {[%emt 0:00:15]} 44. Re6 {[%emt 0:00:00]} Bc7 {[%emt 0:00:00]} 45. Nb5 {[%emt 0:00:00]} Ba5 {[%emt 0:00:00]} 46. Rd6 {[%emt 0:00:00]} Kf7 {[%emt 0:00:00]} 47. a3 {[%emt 0:00:00]} Ke7 {[%emt 0:00:00]} 48. Ra6 {[%emt 0:00:00]} Bd8 {[%emt 0:00:00]} 49. b4 {[%emt 0:00:00]} d4 {[%emt 0:00:00]} 50. Rd6 {[%emt 0:00:00]} d3 {[%emt 0:00:00]} 51. Rd5 {[%emt 0:00:00]} Bb6 {[%emt 0:00:00]} 52. Nc3 {[%emt 0:00:00]} 1-0

[Event "55th Biel Festival MTO 2022"]
[Site "Biel"]
[Date "2022.07.21"]
[Round "8.26"]
[White "Dishman, Stephen"]
[Black "Gaehwiler, Gabriel"]
[Result "0-1"]
[ECO "A35"]
[WhiteElo "2252"]
[BlackElo "2420"]
[Annotator "RC"]
[PlyCount "159"]
[EventDate "2022.07.13"]
[EventType "swiss"]
[EventCountry "SUI"]
[SourceTitle "playchess.com"]
[Source "ChessBase"]
[SourceQuality "1"]
[TimeControl "40/5400+30:1800+30"]

1. Nf3 {[%emt 0:00:04]} c5 {[%emt 0:23:15]} 2. c4 {[%emt 0:00:50]} Nc6 {[%emt 0:00:30]} 3. g3 {[%emt 0:01:08]} e5 {[%emt 0:01:58]} 4. Nc3 {[%emt 0:00:31]} f5 {[%emt 0:00:31]} 5. d3 {[%emt 0:01:34]} Nf6 {[%emt 0:07:20]} 6. Bg2 {[%emt 0:00:49]} Be7 {[%emt 0:00:10]} 7. O-O {[%emt 0:02:02]} O-O {[%emt 0:00:06]} 8. Bg5 {[%emt 0:03:45]} d6 {[%emt 0:02:38]} 9. Rb1 {[%emt 0:02:35]} Be6 {[%emt 0:08:05]} 10. Nd2 {[%emt 0:05:49]} Kh8 {[%emt 0:02:40]} 11. Bxf6 {[%emt 0:05:22]} Bxf6 {[%emt 0:08:58]} 12. a3 {[%emt 0:02:02]} a5 {[%emt 0:10:13]} 13. Nd5 {[%emt 0:08:30]} Bg5 {[%emt 0:00:25]} 14. f4 {[%emt 0:11:28]} Bh6 {[%emt 0:04:10]} 15. e3 {[%emt 0:01:16]} g6 {[%emt 0:05:41]} 16. Kh1 {[%emt 0:12:40]} Re8 {[%emt 0:04:13]} 17. Qc2 {[%emt 0:09:31]} Bf7 {[%emt 0:00:46]} 18. Rbe1 {[%emt 0:00:17]} Bg7 {[%emt 0:01:01]} 19. Nb1 {[%emt 0:00:58]} Bg8 {[%emt 0:05:37]} 20. Nbc3 {[%emt 0:00:09]} Rf8 {[%emt 0:00:14]} 21. Rb1 {[%emt 0:04:59]} Re8 {[%emt 0:02:09]} 22. Qd2 {[%emt 0:01:58]} exf4 {[%emt 0:03:24]} 23. gxf4 {[%emt 0:00:44]} Bxd5 {[%emt 0:01:14]} 24. Nxd5 {[%emt 0:02:28]} Ne7 {[%emt 0:00:25]} 25. b4 {[%emt 0:03:25]} cxb4 {[%emt 0:01:42]} 26. axb4 {[%emt 0:00:05]} a4 {[%emt 0:01:24]} 27. d4 {[%emt 0:00:38]} Nxd5 {[%emt 0:01:07]} 28. Bxd5 {[%emt 0:00:11]} Qe7 {[%emt 0:00:05]} 29. Rfe1 {[%emt 0:01:04]} a3 {[%emt 0:00:22]} 30. Ra1 {[%emt 0:05:39]} Ra4 {[%emt 0:02:13]} 31. Ra2 {[%emt 0:02:55]} Bf6 {[%emt 0:00:33]} 32. Qc3 {[%emt 0:02:25]} Kg7 {[%emt 0:01:33]} 33. Ree2 {[%emt 0:04:23]} Qc7 {[%emt 0:00:42]} 34. Red2 {[%emt 0:02:50]} Qe7 {[%emt 0:01:28]} 35. Re2 {[%emt 0:00:07]} Rc8 {[%emt 0:00:30]} 36. b5 {[%emt 0:01:02]} Raxc4 {[%emt 0:00:29]} 37. Qxa3 {[%emt 0:01:12]} Rc3 {[%emt 0:00:28]} 38. Qa7 {[%emt 0:00:37]} R8c7 {[%emt 0:00:28]} 39. b6 {[%emt 0:00:12]} Rd7 {[%emt 0:00:12]} 40. Qa4 {[%emt 0:00:24]} Rd8 {[%emt 0:00:36]} 41. e4 {[%emt 0:07:03]} Rc1+ {[%emt 0:20:07]} 42. Kg2 {[%emt 0:00:19]} Bg5 {[%emt 0:00:29]} 43. exf5 {[%emt 0:12:50]} Qf6 {[%emt 0:02:02]} 44. Rac2 {[%emt 0:06:10]} Bxf4 {[%emt 0:02:43]} 45. Rxc1 {[%emt 0:00:09]} Bxc1 {[%emt 0:02:36]} 46. Qc2 {[%emt 0:01:21]} Bg5 {[%emt 0:04:00]} 47. fxg6 {[%emt 0:02:59]} Qxg6 {[%emt 0:00:26]} 48. Qxg6+ {[%emt 0:01:11]} hxg6 {[%emt 0:00:10]} 49. Bxb7 {[%emt 0:02:06]} Rb8 {[%emt 0:00:03]} 50. Rc2 {[%emt 0:00:32]} Be3 {[%emt 0:00:42]} 51. Rc7+ {[%emt 0:00:17]} Kh6 {[%emt 0:01:16]} 52. d5 {[%emt 0:00:25]} Bxb6 {[%emt 0:00:19]} 53. Re7 {[%emt 0:00:46]} Rf8 {[%emt 0:00:09]} 54. Re2 {[%emt 0:00:43]} Bd4 {[%emt 0:00:05]} 55. Bc6 {[%emt 0:00:32]} Be5 {[%emt 0:00:10]} 56. Bd7 {[%emt 0:00:29]} Rf4 {[%emt 0:00:11]} 57. h3 {[%emt 0:01:05]} Kg5 {[%emt 0:00:03]} 58. Rd2 {[%emt 0:00:34]} Rb4 {[%emt 0:00:05]} 59. Rd3 {[%emt 0:00:42]} Bf4 {[%emt 0:00:32]} 60. Rf3 {[%emt 0:00:17]} Kf6 {[%emt 0:00:19]} 61. Be6 {[%emt 0:00:17]} g5 {[%emt 0:00:03]} 62. Bg4 {[%emt 0:00:29]} Ke5 {[%emt 0:00:26]} 63. Be6 {[%emt 0:00:06]} Ke4 {[%emt 0:00:11]} 64. Rf2 {[%emt 0:00:44]} Be3 {[%emt 0:02:02]} 65. Ra2 {[%emt 0:00:32]} Kf4 {[%emt 0:00:34]} 66. Bg4 {[%emt 0:00:18]} Rd4 {[%emt 0:01:15]} 67. Be6 {[%emt 0:00:13]} Rd1 {[%emt 0:00:04]} 68. Rc2 {[%emt 0:01:22]} Bc5 {[%emt 0:01:59]} 69. Ra2 {[%emt 0:00:26]} Rd3 {[%emt 0:00:05]} 70. Rc2 {[%emt 0:00:45]} Rg3+ {[%emt 0:00:19]} 71. Kf1 {[%emt 0:00:31]} Kf3 {[%emt 0:01:49]} 72. Bg4+ {[%emt 0:00:41]} Ke4 {[%emt 0:00:14]} 73. Be6 {[%emt 0:00:51]} Kd3 {[%emt 0:00:39]} 74. Bf5+ {[%emt 0:00:34]} Kd4 {[%emt 0:00:26]} 75. Be6 {[%emt 0:00:27]} Ke4 {[%emt 0:00:23]} 76. Re2+ {[%emt 0:00:21]} Kd3 {[%emt 0:00:36]} 77. Bf5+ {[%emt 0:00:14]} Kc3 {[%emt 0:00:46]} 78. Rc2+ {[%emt 0:00:31]} Kb3 {[%emt 0:00:12]} 79. Ke2 {[%emt 0:00:52]} Re3+ {[%emt 0:00:48]} 80. Kd2 {[%emt 0:01:08]} 0-1

[Event "55th Biel Festival MTO 2022"]
[Site "Biel"]
[Date "2022.07.21"]
[Round "8.27"]
[White "Dushyant Sharma"]
[Black "Kamber Bruno"]
[Result "1-0"]
[ECO "B82"]
[WhiteElo "2416"]
[BlackElo "2225"]
[Annotator "RC"]
[PlyCount "61"]
[EventDate "2022.07.13"]
[EventType "swiss"]
[EventCountry "SUI"]
[SourceTitle "playchess.com"]
[Source "ChessBase"]
[SourceQuality "1"]
[TimeControl "40/5400+30:1800+30"]

1. e4 {[%emt 0:00:04]} c5 {[%emt 0:00:12]} 2. Nf3 {[%emt 0:00:10]} e6 {[%emt 0:00:23]} 3. d4 {[%emt 0:00:16]} cxd4 {[%emt 0:00:12]} 4. Nxd4 {[%emt 0:00:08]} Nc6 {[%emt 0:00:04]} 5. Nc3 {[%emt 0:00:32]} Qc7 {[%emt 0:00:10]} 6. f4 {[%emt 0:00:44]} a6 {[%emt 0:00:28]} 7. Be3 {[%emt 0:00:16]} b5 {[%emt 0:00:24]} 8. Bd3 {[%emt 0:00:16]} Bb7 {[%emt 0:00:49]} 9. Nb3 {[%emt 0:00:12]} d6 {[%emt 0:02:53]} 10. Qf3 {[%emt 0:01:04]} Nf6 {[%emt 0:00:34]} 11. O-O {[%emt 0:00:12]} Nb4 {[%emt 0:03:12]} 12. a3 {[%emt 0:00:28]} Nxd3 {[%emt 0:00:38]} 13. cxd3 {[%emt 0:00:07]} d5 {[%emt 0:01:50]} 14. Rac1 {[%emt 0:08:00]} dxe4 {[%emt 0:00:24]} 15. dxe4 {[%emt 0:18:15]} Qb8 {[%emt 0:04:42]} 16. Nc5 {[%emt 0:13:49]} Bxc5 {[%emt 0:00:58]} 17. Bxc5 {[%emt 0:00:07]} Nd7 {[%emt 0:00:06]} 18. Bd4 {[%emt 0:02:21]} f6 {[%emt 0:04:44]} 19. Qh5+ {[%emt 0:09:23]} Ke7 {[%emt 0:01:17]} 20. Rfd1 {[%emt 0:04:57]} g6 {[%emt 0:02:53]} 21. Qh4 {[%emt 0:08:24]} Kf7 {[%emt 0:02:32]} 22. Be3 {[%emt 0:00:43]} Qe8 {[%emt 0:11:42]} 23. Rd6 {[%emt 0:01:50]} Rc8 {[%emt 0:05:59]} 24. Rcd1 {[%emt 0:02:48]} Nf8 {[%emt 0:06:36]} 25. e5 {[%emt 0:07:31]} fxe5 {[%emt 0:00:43]} 26. fxe5 {[%emt 0:01:30]} Qe7 {[%emt 0:00:09]} 27. Bg5 {[%emt 0:03:57]} Qc7 {[%emt 0:00:15]} 28. Qf2+ {[%emt 0:01:04]} Kg8 {[%emt 0:01:06]} 29. Bh6 {[%emt 0:02:33]} Qe7 {[%emt 0:04:07]} 30. Rf1 {[%emt 0:01:09]} Nd7 {[%emt 0:02:11]} 31. Rxd7 {[%emt 0:00:19]} 1-0

[Event "55th Biel Festival MTO 2022"]
[Site "Biel"]
[Date "2022.07.21"]
[Round "8.28"]
[White "Aaron Deepak"]
[Black "Stijve, Theo"]
[Result "1-0"]
[ECO "A17"]
[WhiteElo "2221"]
[BlackElo "2394"]
[Annotator "TA"]
[PlyCount "63"]
[EventDate "2022.07.13"]
[EventType "swiss"]
[EventCountry "SUI"]
[SourceTitle "playchess.com"]
[Source "ChessBase"]
[SourceQuality "1"]
[TimeControl "40/5400+30:1800+30"]

{[%evp 9,63,-7,-14,-6,-2,0,16,2,5,7,34,12,22,-22,27,1,90,92,110,111,126,117,282,278,417,413,402,406,379,365,360,369,456,456,656,647,748,724,695,685,836,586,775,739,1126,1172,1162,1112,29982,29983,29983,29984,29983,29984,29983,29984]} 1. c4 {[%emt 0:00:10]} e6 {[%emt 0:00:07]} 2. Nc3 {[%emt 0:00:08]} d5 {[%emt 0:00:06]} 3. e3 {[%emt 0:01:02]} Nf6 {[%emt 0:00:23]} 4. a3 {[%emt 0:02:09]} c5 {[%emt 0:01:20]} 5. cxd5 {[%emt 0:01:41]} exd5 {[%emt 0:04:17]} 6. d4 {[%emt 0:01:09] A17: English Opening: 1...Nf6 with ...Bb4.} Nc6 {[%emt 0:01:18]} 7. Nf3 {[%emt 0:01:38]} Bg4 {[%emt 0:03:33]} 8. Bb5 {[%emt 0:04:34][%cal Bf1b5,Bb5a4,Ba4c2][%mdl 32] [#] The position is equal.} c4 $146 {[%emt 0:17:53]} ({Predecessor:} 8... cxd4 9. Qxd4 Bxf3 10. gxf3 Be7 11. Qa4 O-O 12. Ne2 Rc8 13. Bd2 a6 14. Bxc6 bxc6 15. Qxa6 {1-0 (46) Mamedyarov,S (2764)-Batsiashvili,N (2457) Playchess.com INT 2020}) 9. h3 {[%emt 0:03:39]} Bxf3 {[%emt 0:01:42]} 10. Qxf3 {[%emt 0:02:58]} Bd6 {[%emt 0:00:06]} 11. Bd2 {[%emt 0:04:47]} a6 {[%emt 0:03:26]} (11... Bc7 $142 $1) 12. Ba4 $36 {[%emt 0:00:54][%mdl 2048] White is more active.} (12. Bxc6+ $5 bxc6 13. e4 Nxe4 14. Nxe4 $11) 12... b5 {[%emt 0:01:27]} (12... Bc7 $11 {keeps the balance.}) 13. Bc2 $1 $16 {[%emt 0:01:57]} ({Don't play} 13. Nxd5 $6 Nxd5 14. Qxd5 Ne7 15. Bxb5+ Kf8 16. Qxc4 axb5 17. Qxb5 Rb8 $11) 13... Bc7 {[%emt 0:03:09] [#]} 14. g4 $1 {[%emt 0:01:36][%cal Bg2g4,Bg4g5][%mdl 32]} h6 {[%emt 0:04:03] [#]} 15. h4 $1 {[%emt 0:04:56] g5 is the strong threat.} Qe7 $2 {[%emt 0:17:55] A mistake that costs the game.} (15... b4 $16) 16. Nxd5 $18 {[%emt 0:05:27]} Qd6 {[%emt 0:11:22]} (16... Nxd5 {keeps fighting.} 17. Qxd5 Qd6) 17. Nxc7+ {[%emt 0:06:49]} ({Much less strong is} 17. Nb4 Nxb4 18. Qxa8+ Ke7 19. Bxb4 (19. Qxh8 Nxc2+ 20. Kd1 Qe6 $11) 19... Rxa8 $18) 17... Qxc7 {[%emt 0:00:08]} 18. g5 {[%emt 0:00:20]} Nd7 {[%emt 0:02:19]} 19. Be4 {[%emt 0:07:38]} Rc8 {[%emt 0:01:09]} 20. Rg1 {[%emt 0:02:09]} hxg5 {[%emt 0:01:32]} 21. Rxg5 {[%emt 0:02:05]} Kf8 {[%emt 0:05:08]} (21... Qd6 $142 22. Rxg7 Qf6 23. Bxc6 Rxc6) 22. Bc3 {[%emt 0:06:48] Strongly threatening Bxc6.} f6 {[%emt 0:05:50]} 23. Rh5 {[%emt 0:01:03]} Rxh5 {[%emt 0:03:22]} 24. Qxh5 {[%emt 0:00:06]} Nb6 {[%emt 0:02:27]} 25. O-O-O {[%emt 0:03:53]} b4 {[%emt 0:06:10]} 26. axb4 {[%emt 0:00:49] And now b5 would win.} Ne7 {[%emt 0:00:06]} 27. d5 {[%emt 0:01:34] aiming for d6.} Qd6 {[%emt 0:01:16]} 28. Rg1 {[%emt 0:01:00] White wants to mate with Qh8+.} Rc7 {[%emt 0:00:26]} 29. Qh8+ {[%emt 0:00:59] White mates.} Ng8 {[%emt 0:00:06]} 30. Bh7 {[%emt 0:00:09]} Qxd5 {[%emt 0:00:29]} 31. Rd1 {[%emt 0:00:07]} Qf7 {[%emt 0:02:12]} 32. Bxg8 {[%emt 0:00:34] Weighted Error Value: White=0.13 (very precise) /Black=0.69} 1-0

[Event "55th Biel Festival MTO 2022"]
[Site "Biel"]
[Date "2022.07.21"]
[Round "8.29"]
[White "Ajay Krishna, S."]
[Black "Mamedov, Edgar"]
[Result "1/2-1/2"]
[ECO "D13"]
[WhiteElo "2372"]
[BlackElo "2227"]
[Annotator "ChessBase"]
[PlyCount "154"]
[EventDate "2022.07.13"]
[EventType "swiss"]
[EventCountry "SUI"]
[SourceTitle "playchess.com"]
[Source "ChessBase"]
[SourceQuality "1"]
[TimeControl "40/5400+30:1800+30"]

1. d4 {[%emt 0:00:17]} d5 {[%emt 0:00:25]} 2. Nf3 {[%emt 0:00:17]} Nf6 {[%emt 0:00:35]} 3. Bf4 {[%emt 0:00:30]} c5 {[%emt 0:01:01]} 4. c3 {[%emt 0:00:59]} cxd4 {[%emt 0:02:27]} 5. cxd4 {[%emt 0:00:43]} Nc6 {[%emt 0:00:21]} 6. Nc3 {[%emt 0:01:31]} a6 {[%emt 0:01:30]} 7. e3 {[%emt 0:01:22]} Bg4 {[%emt 0:01:14]} 8. h3 {[%emt 0:05:22]} Bxf3 {[%emt 0:03:02]} 9. Qxf3 {[%emt 0:02:36]} e6 {[%emt 0:01:41]} 10. Be2 {[%emt 0:07:39]} Bd6 {[%emt 0:10:42]} 11. Bg5 {[%emt 0:01:03]} O-O {[%emt 0:06:55]} 12. O-O {[%emt 0:02:42]} h6 {[%emt 0:09:15]} 13. Bh4 {[%emt 0:04:21]} Rc8 {[%emt 0:02:50]} 14. Rac1 {[%emt 0:04:14]} Be7 {[%emt 0:07:08]} 15. Bd3 {[%emt 0:07:07]} b5 {[%emt 0:07:40]} 16. a4 {[%emt 0:05:51]} Nb4 {[%emt 0:04:59]} 17. Bb1 {[%emt 0:04:10]} Qd7 {[%emt 0:06:34]} 18. axb5 {[%emt 0:02:07]} axb5 {[%emt 0:00:08]} 19. Qe2 {[%emt 0:09:42]} Rb8 {[%emt 0:00:23]} 20. f3 {[%emt 0:02:05]} Na6 {[%emt 0:24:18]} 21. Bg3 {[%emt 0:07:37]} Bd6 {[%emt 0:00:41]} 22. Bxd6 {[%emt 0:01:16]} Qxd6 {[%emt 0:00:06]} 23. Nxb5 {[%emt 0:01:00]} Qb6 {[%emt 0:00:56]} 24. Nc3 {[%emt 0:00:10]} Rfc8 {[%emt 0:02:09]} 25. Rf2 {[%emt 0:01:19]} Nb4 {[%emt 0:00:55]} 26. Rd1 {[%emt 0:01:06]} Nc6 {[%emt 0:01:24]} 27. f4 {[%emt 0:00:52]} g6 {[%emt 0:02:09]} 28. g4 {[%emt 0:09:09]} Kg7 {[%emt 0:00:29]} 29. h4 {[%emt 0:02:18]} h5 {[%emt 0:01:18]} 30. gxh5 {[%emt 0:00:34]} Nxh5 {[%emt 0:00:20]} 31. Rg2 {[%emt 0:01:00]} Rh8 {[%emt 0:00:17]} 32. f5 {[%emt 0:02:28]} exf5 {[%emt 0:00:33]} 33. Bxf5 {[%emt 0:00:10]} Ne7 {[%emt 0:00:24]} 34. Bg4 {[%emt 0:03:41]} Nf6 {[%emt 0:00:34]} 35. h5 {[%emt 0:00:10]} Rh6 {[%emt 0:00:48]} 36. hxg6 {[%emt 0:03:07]} Nxg6 {[%emt 0:00:38]} 37. Bf3 {[%emt 0:02:37]} Rbh8 {[%emt 0:00:35]} 38. Kf2 {[%emt 0:00:38]} Qd6 {[%emt 0:00:58]} 39. Rdg1 {[%emt 0:01:25]} Rh2 {[%emt 0:00:25]} 40. Ke1 {[%emt 0:01:29]} Rxg2 {[%emt 0:00:56]} 41. Rxg2 {[%emt 0:31:38]} Qe6 {[%emt 0:06:15]} 42. Rg5 {[%emt 0:00:00]} Re8 {[%emt 0:03:19]} 43. Kd2 {[%emt 0:00:00]} Rb8 {[%emt 0:02:07]} 44. Kc1 {[%emt 0:00:00]} Re8 {[%emt 0:04:57]} 45. Kd2 {[%emt 0:00:00]} Rb8 {[%emt 0:00:11]} 46. Kc2 {[%emt 0:00:00]} Rd8 {[%emt 0:04:48]} 47. Qd3 {[%emt 0:00:00]} Qh3 {[%emt 0:09:05]} 48. Qf5 {[%emt 0:00:00]} Qxf5+ {[%emt 0:01:13]} 49. Rxf5 {[%emt 0:00:00]} Nh4 {[%emt 0:00:13]} 50. Rg5+ {[%emt 0:00:00]} Kh6 {[%emt 0:00:21]} 51. Rg3 {[%emt 0:00:00]} Nf5 {[%emt 0:00:37]} 52. Rh3+ {[%emt 0:00:00]} Kg7 {[%emt 0:00:17]} 53. Kd3 {[%emt 0:00:56]} Rb8 {[%emt 0:01:01]} 54. Rh2 {[%emt 0:00:32]} Ne7 {[%emt 0:00:38]} 55. Rg2+ {[%emt 0:02:00]} Kf8 {[%emt 0:00:12]} 56. Re2 {[%emt 0:01:05]} Ke8 {[%emt 0:00:32]} 57. Rf2 {[%emt 0:00:31]} Kf8 {[%emt 0:00:37]} 58. Bd1 {[%emt 0:00:20]} Kg7 {[%emt 0:00:26]} 59. Ba4 {[%emt 0:00:14]} Ng6 {[%emt 0:01:11]} 60. Rg2 {[%emt 0:00:44]} Kf8 {[%emt 0:00:16]} 61. Kc2 {[%emt 0:01:00]} Ke7 {[%emt 0:00:31]} 62. Bb3 {[%emt 0:00:35]} Kd6 {[%emt 0:00:26]} 63. Ba2 {[%emt 0:01:08]} Ne7 {[%emt 0:00:28]} 64. Kd3 {[%emt 0:01:35]} Nc6 {[%emt 0:00:27]} 65. Rf2 {[%emt 0:01:57]} Nb4+ {[%emt 0:00:19]} 66. Ke2 {[%emt 0:00:29]} Ng4 {[%emt 0:01:28]} 67. Rxf7 {[%emt 0:01:24]} Nxa2 {[%emt 0:00:19]} 68. Nxa2 {[%emt 0:00:46]} Rxb2+ {[%emt 0:00:10]} 69. Kf3 {[%emt 0:00:16]} Nh2+ {[%emt 0:01:30]} 70. Kg3 {[%emt 0:00:05]} Rxa2 {[%emt 0:00:08]} 71. Rf6+ {[%emt 0:00:15]} Ke7 {[%emt 0:00:32]} 72. Rf4 {[%emt 0:00:55]} Ke6 {[%emt 0:00:35]} 73. e4 {[%emt 0:00:41]} dxe4 {[%emt 0:01:12]} 74. Rxe4+ {[%emt 0:00:03]} Kd5 {[%emt 0:00:21]} 75. Rf4 {[%emt 0:00:04]} Rd2 {[%emt 0:00:27]} 76. Rf2 {[%emt 0:00:16]} Rxf2 {[%emt 0:00:05]} 77. Kxf2 {[%emt 0:00:02]} Kxd4 {[%emt 0:00:02]} 1/2-1/2